Cogmind - Beta 13 @@@ ROGUE MODE // 2024.05.09 @ 16:23:53 Player: Millea Result: Destroyed by G-34 Mercenary with Small Laser Performance ------------- Evolutions (1) 500 Regions Visited (3) 600 Robots Destroyed (80) 400 Value Destroyed (2202) 2202 Prototype IDs (7) 140 Alien Tech Used (0) 0 Bonus (58) 58 TOTAL SCORE: 3900 Bonus ------- High Alert Combat Kills 58 Cogmind --------- Core Integrity 0/400 Matter 231/300 Energy 280/280 System Corruption 15% Temperature Cool (6) Movement Treading (240) Ox1 Location -9/Storage Parts ------- > --- POWER (1) -------- Heavy Ion Engine > --- PROPULSION (3) --- Light Treads Light Treads Light Treads > --- UTILITY (3) ------ Huge Storage Unit Salvage Targeting Computer Core Shielding > --- WEAPON (2) ------- Heavy Assault Rifle Heavy Assault Rifle > --- INVENTORY (25) --- Light Treads Light Treads Light Treads Light Treads Light Treads Heat Sink High-capacity Battery (250) High-capacity Battery (250) High-capacity Battery (250) Weapon Shielding Grenade Launcher Mini Grenade Launcher Mini Grenade Launcher Peak State ------------ > --- POWER ------------ Heavy Ion Engine > --- PROPULSION ------- Light Treads Light Treads Light Treads > --- UTILITY ---------- Huge Storage Unit High-capacity Battery Hacking Suite > --- WEAPON ----------- Heavy Assault Rifle Improved Assault Rifle > --- INVENTORY -------- Heavy Ion Engine Light Treads Light Treads Light Treads Light Treads Light Treads Light Treads Light Treads Heat Sink High-capacity Battery High-capacity Battery Small Matter Pod Small Matter Pod Salvage Targeting Computer Core Shielding Weapon Shielding Medium Armor Plating Small Laser Heavy Assault Rifle Heavy Assault Rifle Heavy Assault Rifle Grenade Launcher Mini Grenade Launcher Mini Grenade Launcher [Rating: 19] Favorites ----------- Power Heavy Ion Engine Engine Heavy Ion Engine Propulsion Light Treads Treads Light Treads Utility Light Armor Plating Device Heat Sink Storage Huge Storage Unit Processor Salvage Targeting Computer Hackware Hacking Suite Protection Light Armor Plating Weapon Heavy Assault Rifle Energy Cannon Beam Cannon Ballistic Gun Heavy Assault Rifle Ballistic Cannon Light Cannon Build | -11 -10 -9 -9 ------- Run | Yrd Mat Mat Sto Slots Evolved 2 | . . 2 . Power . | . . . . Propulsion 1 | . . 1 . Utility 1 | . . 1 . Weapon . | . . . . Parts Attached 56 | 6 9 12 29 Power 5 | 1 2 1 1 Engine 5 | 1 2 1 1 Core . | . . . . Reactor . | . . . . Propulsion 15 | 2 1 4 8 Treads 15 | 2 1 4 8 Leg . | . . . . Wheel . | . . . . Hover . | . . . . Flight . | . . . . Utility 26 | 1 5 4 16 Device 3 | . 1 1 1 Storage 4 | 1 2 1 . Processor 1 | . . . 1 Hackware 1 | . . . 1 Protection 17 | . 2 2 13 Artifact . | . . . . Weapon 10 | 2 1 3 4 Energy Gun . | . . . . Energy Cannon 1 | . . 1 . Ballistic Gun 8 | 2 . 2 4 Ballistic Cannon 1 | . 1 . . Launcher . | . . . . Special Weapon . | . . . . Impact Weapon . | . . . . Slashing Weapon . | . . . . Piercing Weapon . | . . . . Special Melee Weapon . | . . . . Unidentified Prototypes 1 | . . 1 . Parts Lost 28 | . 2 7 19 Power 2 | . 2 . . Propulsion 9 | . . 3 6 Utility 11 | . . 2 9 Weapon 6 | . . 2 4 Highest Loss Streak 6 | . 1 3 6 To Critical Strikes . | . . . . Average Slot Usage (%) 98 | . 94 99 99 Engine 10 | . 9 11 11 Treads 31 | . 27 33 33 Device 1 | . 4 . 1 Storage 13 | . 14 17 11 Protection 16 | . 8 14 19 Energy Cannon 1 | . . 8 . Ballistic Gun 17 | . 19 2 21 Ballistic Cannon 3 | . 8 10 . Naked Turns . | . . . . Heaviest Build 105 | 11 93 99 105 Greatest Support 60 | 40 40 60 60 Greatest Overweight (x) 2 | . 2 1 1 Average Overweight (x) . | . . 1 1 Largest Inventory Capacity 25 | 8 25 25 25 Average Capacity 23 | 6 18 25 25 Most Carried 25 | 2 16 25 25 Average Carried 20 | 1 14 19 23 Final Capacity 25 | 8 25 25 25 Final Carried 24 | 2 16 24 13 Class Distribution -------------------- 58% | Scavenger-Mutant 41% | Mutant Dominant Class ---------------- Mutant | -10/Materials Mutant | -9/Materials Scavenger-Mutant | -9/Storage Resources | -11 -10 -9 -9 ----------- Run | Yrd Mat Mat Sto Matter Collected 2359 | 230 400 386 1343 Remotely . | . . . . Salvage Created 3678 | . 632 840 2206 Parts 175 | . 32 53 90 Haulers Intercepted 5 | . 1 4 . Recyclers Shooed 2 | . 1 . 1 Parts Field Recycled . | . . . . Retrieved Matter . | . . . . Parts Self-Destructed . | . . . . Prevented . | . . . . Kills | -11 -10 -9 -9 ------- Run | Yrd Mat Mat Sto Combat Hostiles Destroyed 61 | . 10 16 35 Guns 42 | . 7 . 35 Cannons 19 | . 3 16 . Classes Destroyed 11 | . 5 5 1 Worker 10 | . . 2 8 Tunneler 1 | . . 1 . Hauler 5 | . 1 4 . Recycler 4 | . 2 . 2 Mechanic 1 | . . . 1 Operator 1 | . . 1 . Watcher 5 | . 3 1 1 Swarmer 5 | . 2 3 . Grunt 20 | . 8 7 5 Brawler 3 | . . 1 2 Sentry 33 | . . 5 28 Best Kill Streak 6 | . 5 6 5 Combat Bots Only 4 | . 2 4 3 Max Kills in Single Turn 2 | . 1 2 2 Gunslinging 1 | . . . 1 Exploded . | . . . . Melee . | . . . . Uniques/NPCs Destroyed . | . . . . Combat | -11 -10 -9 -9 -------- Run | Yrd Mat Mat Sto Hostile Shots Fired 424 | . 84 93 247 Missed 106 | . 26 30 50 Damage Taken 4566 | . 648 836 3082 Core 508 | . 103 70 335 Absorbed by Shields . | . . . . Redirected to Shielding 93 | . 43 42 8 Regen/Repaired (Parts) 137 | . 137 . . Core Remaining (%) 79 | 100 58 . . Volleys Fired 291 | . 71 60 160 Largest 2 | . 2 2 2 Hottest 95 | . 55 95 46 Shots Fired 571 | . 142 107 322 Gun 460 | . 133 5 322 Cannon 111 | . 9 102 . Launcher . | . . . . Special . | . . . . Kinetic 521 | . 142 57 322 Thermal 50 | . . 50 . Explosive . | . . . . Electromagnetic . | . . . . Robot Hit Streak 28 | . 9 6 28 Robot Miss Streak 6 | . 4 6 2 Penetration Max . | . . . . Secondary Targets 5 | . . . 5 Max Gunslinging Chain 1 | . . . 1 Shots Hit Robots 346 | . 77 59 210 Core Hits 140 | . 28 29 83 Critical Kills 3 | . . 1 2 Critical Parts Destroyed 2 | . 2 . . Critical Strikes 7 | . 4 1 2 Meltdown 1 | . . 1 . Destroy 4 | . 2 . 2 Blast 2 | . 2 . . Melee Attacks . | . . . . Impact . | . . . . Slashing . | . . . . Piercing . | . . . . Sneak Attacks . | . . . . Combat Hostiles . | . . . . Follow-up Attacks . | . . . . Damage Inflicted 5304 | . 885 1115 3304 Guns 4121 | . 794 23 3304 Cannons 1183 | . 91 1092 . Explosions . | . . . . Melee . | . . . . Ramming . | . . . . Kinetic 4749 | . 885 560 3304 Thermal 555 | . . 555 . Explosive . | . . . . Electromagnetic . | . . . . Impact . | . . . . Slashing . | . . . . Piercing . | . . . . Highest Corruption 15 | . . 5 15 Average Corruption 5 | . . 5 5 Corruption Purged . | . . . . Corruption Blocked . | . . . . Effects 92 | . . 16 76 Message Errors 23 | . . 4 19 Matter Fused 22 | . . 3 19 Heat Flow Errors 12 | . . 3 9 Energy Discharges 9 | . . 2 7 Parts Rejected 1 | . . . 1 Parts Fused 2 | . . 1 1 Data Loss (minor) 8 | . . . 8 Data Loss (major) 3 | . . 1 2 Misfires 6 | . . 1 5 Alerts 2 | . . . 2 Weapon Failures 4 | . . 1 3 Overload Shots . | . . . . Overflow Damage . | . . . . Projectiles . | . . . . Explosions . | . . . . Melee . | . . . . Knockbacks 6 | . 1 5 . Impact . | . . . . Kinetic 6 | . 1 5 . Secondary . | . . . . Self-Inflicted Damage . | . . . . Shots . | . . . . Rammed . | . . . . Targets Rammed . | . . . . Kicked . | . . . . Crushed . | . . . . Highest Temperature 329 | . 46 310 329 Average Temperature 80 | . 14 112 64 Received Heat Transfer 1494 | . 240 288 966 Effects 4 | . . 3 1 Energy Bleed 2 | . . 1 1 Interference 2 | . . 2 . Siege Activations . | . . . . Robots Corrupted . | . . . . Combat Hostiles . | . . . . Parts Fried . | . . . . Impact Corruptions . | . . . . Robots Melted 1 | . . 1 . Combat Hostiles . | . . . . Parts Melted 1 | . . 1 . Heat Transferred 1147 | . . 1147 . Parts Sabotaged . | . . . . Parts Stolen . | . . . . Parts Stripped . | . . . . Power Chain Reactions . | . . . . Alert | -11 -10 -9 -9 ------- Run | Yrd Mat Mat Sto Peak Influence 490 | . 296 348 490 Initial . | . . . . Average 136 | . 124 170 133 Maximum Alert Level 2 | . 1 1 2 Low Security (%) 70 | 100 68 47 76 Level 1 22 | . 31 52 12 Level 2 6 | . . . 11 Level 3 . | . . . . Level 4 . | . . . . Level 5 . | . . . . High Security . | . . . . Max Security . | . . . . Squads Dispatched 35 | . 3 1 31 Investigation 2 | . 1 . 1 Extermination . | . . . . Reinforcement 3 | . 2 1 . Assault 1 | . . . 1 Garrison 29 | . . . 29 Intercept . | . . . . Searches Triggered . | . . . . Construction Impeded . | . . . . Haulers Reinforced . | . . . . Active Scanning Responses . | . . . . Cargo Convoy Interrupts . | . . . . Stealth | -11 -10 -9 -9 --------- Run | Yrd Mat Mat Sto Distress Signals 4 | . 2 1 1 Communications Jammed . | . . . . Distress Signals . | . . . . Times Spotted 85 | . 19 20 46 Peak Tracking Total 7 | . 4 4 7 Tactical Retreats 5 | . 5 . . Traps | -11 -10 -9 -9 ------- Run | Yrd Mat Mat Sto Traps Triggered . | . . . . Indirectly . | . . . . Trap Hack Attempts . | . . . . Triggered . | . . . . Disarmed . | . . . . Reprogrammed . | . . . . Reused . | . . . . Traps Extracted . | . . . . Installed . | . . . . Triggered . | . . . . Machines | -11 -10 -9 -9 ---------- Run | Yrd Mat Mat Sto Machines Disabled 4 | . . 3 1 Max in Single Turn 1 | . . 1 1 Machines Repaired . | . . . . Machines Dismantled . | . . . . Machines Sabotaged . | . . . . Overloaded Fab Kills . | . . . . Hacking | -11 -10 -9 -9 --------- Run | Yrd Mat Mat Sto Machines Accessed 9 | . 5 3 1 Terminals 7 | . 4 3 . Fabricators . | . . . . Repair Stations 1 | . 1 . . Recycling Units . | . . . . Scanalyzers . | . . . . Garrison Access 1 | . . . 1 Total Hacks 30 | . 15 12 3 Successful 14 | . 7 7 . Failed 15 | . 8 4 3 Catastrophic 2 | . 2 . . Database Lockouts 1 | . . 1 . Manual 12 | . 7 5 . Terminals 24 | . 12 12 . Fabricators . | . . . . Repair Stations 3 | . 3 . . Recycling Units . | . . . . Scanalyzers . | . . . . Garrison Access 3 | . . . 3 Terminal Hacks 11 | . 4 7 . Record 1 | . . 1 . Robot Analysis 3 | . 1 2 . Prototype ID Bank 3 | . 1 2 . Branch Access Points 1 | . . 1 . Alert Level 1 | . 1 . . Unreport Threat 2 | . 1 1 . Fabricator Hacks . | . . . . Repair Station Hacks 2 | . 2 . . Scan Component 1 | . 1 . . Repair 1 | . 1 . . Recycling Unit Hacks . | . . . . Scanalyzer . | . . . . Garrison Access Hacks . | . . . . Unauthorized Hacks 1 | . 1 . . Terminals 1 | . 1 . . Botnet 1 | . 1 . . Fabricators . | . . . . Repair Stations . | . . . . Recycling Units . | . . . . Scanalyzers . | . . . . Garrison Access . | . . . . Data Cores Recovered 1 | . . 1 . Used 1 | . . 1 . Hacking Detections 8 | . 5 2 1 Full Trace Events 3 | . 2 . 1 Feedback Events . | . . . . Feedback Blocked . | . . . . Robot Schematics Acquired . | . . . . Robots Built . | . . . . Authchips . | . . . . Time . | . . . . Total Robot Build Rating . | . . . . Part Schematics Acquired . | . . . . Parts Built . | . . . . Authchips . | . . . . Time . | . . . . Total Part Build Rating . | . . . . Parts Repaired 1 | . 1 . . Time 26 | . 26 . . Parts Recycled . | . . . . Recycled Matter . | . . . . Retrieved Matter . | . . . . Retrieved Components . | . . . . Parts Scanalyzed . | . . . . Part Schematics Acquired . | . . . . Parts Damaged . | . . . . Bothacking | -11 -10 -9 -9 ------------ Run | Yrd Mat Mat Sto Used RIF Installer . | . . . . Robots Hacked . | . . . . Non-combat . | . . . . Combat . | . . . . Robot Hacks Applied . | . . . . Relay Couplers Released . | . . . . Fabnet Peak Effective % . | . . . . Robots Rewired . | . . . . Allies Hacked . | . . . . Hacks Repelled . | . . . . Allies | -11 -10 -9 -9 -------- Run | Yrd Mat Mat Sto Total Allies . | . . . . Largest Group . | . . . . Highest-Rated Group . | . . . . Highest-Rated Ally . | . . . . Total Orders . | . . . . Ally Attacks . | . . . . Total Damage . | . . . . Kills . | . . . . Allies Corrupted . | . . . . Allies Melted . | . . . . Intel | -11 -10 -9 -9 ------- Run | Yrd Mat Mat Sto Robot Analysis Total 3 | . 1 2 . Derelict Logs Recovered . | . . . . Drone Launches . | . . . . Drone Recoveries . | . . . . Exploration | -11 -10 -9 -9 ------------- Run | Yrd Mat Mat Sto Turns Passed 4770 | 73 929 858 2910 Spaces Moved 913 | 41 313 271 288 Core 2 | 2 . . . Treads 911 | 39 313 271 288 Legs . | . . . . Wheels . | . . . . Hover . | . . . . Flight . | . . . . Fastest Speed 50 | 50 160 240 240 Average Speed 226 | 154 212 240 240 Slowest Speed 320 | 160 320 240 240 Overloaded Moves . | . . . . Propulsion Burnouts . | . . . . Robots Hopped . | . . . . Cave-ins Triggered . | . . . . Exploration Rate (%) 25 | 4 51 36 9 Regions Visited 3 Branch Regions 1 Pre-discovered Areas . | . . . . Known Exits Taken 1 | . . 1 . Unknown Exits Taken 2 | 1 1 . . Scrap Searched . | . . . . Spaces Dug . | . . . . Terrain Destroyed 7 | . . . 7 Melee . | . . . . Projectile . | . . . . AOE 7 | . . . 7 Terrain Rammed . | . . . . Walls Destroyed . | . . . . Machines Disabled . | . . . . Actions | -11 -10 -9 -9 --------- Run | Yrd Mat Mat Sto Total 3064 | 48 451 376 2189 Wait 1730 | . 36 4 1690 Move 910 | 40 312 270 288 Hop . | . . . . Pick Up 58 | 2 18 23 15 Fast Attach 11 | 6 3 1 1 Attach 31 | . 2 9 20 Detach . | . . . . Swap 14 | . 4 2 8 Drop 19 | . 5 7 7 Fire 291 | . 71 60 160 Melee . | . . . . Ram . | . . . . Kick . | . . . . Crush . | . . . . Escape Stasis . | . . . . Rewire . | . . . . Trap . | . . . . Miscellaneous . | . . . . Route ------- -11/Scrapyard -10/Materials (discovered 3 exits: *Mat x2 / [*Min]) -9/Materials (discovered 4 exits: [*Mat] / Min x2 / *Sto) -9/Storage History --------- Turn | Location | Event 10 | -11/Scrapyard | Discovered new exit (range 15) 74 | -11/Scrapyard | Entered Materials 305 | -10/Materials | Build established: Mutant 354 | -10/Materials | Discovered new exit (range 15) 448 | -10/Materials | Discovered new exit (range 7) 547 | -10/Materials | Repaired Lgt. Treads 709 | -10/Materials | Discovered new exit (range 15) 1003 | -10/Materials | Entered another Materials area 1003 | -9/Materials | Evolved 2 slots: Propulsion x1, Utility x1 1018 | -9/Materials | Central database locked down 1204 | -9/Materials | Identified exit to Mines 1204 | -9/Materials | Identified exit to Storage 1354 | -9/Materials | Lost 3 parts (1n2u) 1550 | -9/Materials | Discovered new exit (range 7) 1861 | -9/Materials | Entered Storage 2275 | -9/Storage | Build established: Scavenger-Mutant 3844 | -9/Storage | Core integrity fell below 50% 4442 | -9/Storage | Garrison activated, responded to threat 4633 | -9/Storage | Core integrity fell below 20% 4661 | -9/Storage | First assault squad dispatched 4738 | -9/Storage | Garrison activated, responded to threat 4757 | -9/Storage | System corruption reached 10% 4771 | -9/Storage | Destroyed by G-34 Mercenary with Small Laser Last Messages --------------- 04756_ System corrupted by crushing effect (+4). 04756_ System corrupted by crushing effect (+5). 04758_ K-01 Serf collects debris. 04761_ B-36 Bruiser suffers critical hit (Destroy). 04761_ B-36 Bruiser destroyed. 04761_ Switching to secondary target: L-31 Rogue. 04761_ R-06 Scavenger collects Aluminum Leg. 04763_ System corrupted: IFF burst signal emitted. 04764_ K-01 Serf collects debris. 04764_ Hvy. Assault Rifle destroyed. 04764_ R-06 Scavenger collects Lgt. Treads. 04767_ Lgt. Armor Plating severed. 04767_ Lgt. Armor Plating crushed and broken. 04767_ R-06 Scavenger collects Heat Sink. 04768_ K-01 Serf collects debris. 04770_ R-06 Scavenger collects Aluminum Leg. 04771_ K-01 Serf collects debris. Map ----- +----------------------------------------------------+ | | | | | | | | | | | | | | | | | | | | | | | | | | | | | | | | | | | | | ?????????#############????????????? | | ?????????#==[===![ #????????????? | | ?????????#[===*[=! #????????????? | | ?????????#*%[==![!! #????????????? | | ?????????#i"!"[k%[! #????????????? | | ?????????#g"G"!!*=%% #????????????? | | ?????????#lg"=[ ! #????????????? | | ?????????#@lb%%%r #????????????? | | ?????????######+############+##???? | | ?????????# % #???? | | ?????????# % % #???? | | ?????????# %% % #???? | | ?????????######## % ####### #???? | | ????????????????# #?????# #???? | | ????????????????# #?????# #???? | | ????????????????# #?????# #???? | | ??????####??????# #?????# #???? | | ??????# ????# #?????+ /???? | | ??????# ??# #?????? # ??? | | ??????# # #?????? ##??? | | ?????????"" """ + #?????? #???? | | ?????????"" """ # #?????? #???? | | ??????????" ""??## #?????? #???? | | ?????????? ?????# #?????? #???? | | ?????????????????? +?????? ????? | | ?????????????????? #?????????????? | | ?????????????????? #?????????????? | | ?????????????????? #?????????????? | | ?????????????????? ?????????????? | | ?????????????????? ?????????????? | | ?????????????????? "?????????????? | | ??????????????????? ""????????????? | +----------------------------------------------------+ Best States ------------- Heat Dissipation 38 Energy Generation 14 Energy Capacity 530 Matter Stores 300 Matter Capacity 300 Sight Range 16 Terrain Scan Density 10 Armor Coverage 375 Core Shielding 20 Weapon Shielding 33 Evasion (%) 40 Recoil Reduction 3 Salvage Targeting 1 Item Schematics ----------------- None Robot Schematics ------------------ None Fabricated ------------ Nothing Alien Tech Used ----------------- None Achievements -------------- None Challenges ------------ None Game ------ Seed CoolantSniperFemtoactuators Manual? 0 Play Time 00:18:45 Cumulative 339.2 hours Start 2024.05.09 @ 16:06:16 End 2024.05.09 @ 16:23:53 Sessions 1 Manual Loads 0 Difficulty Rogue Special Mode None Game No. 251 Rogue 251 Adventurer 0 Explorer 0 Win Type - Total 12 Types 8/0/3/1/0/0/0/0/0 Lore% 80 Gallery% 88 Achievement% 75 Wizard Run 0 Options --------- Layout 2 ASCII 1 Keyboard 0 Movement Mouse Keybinds 0 Fullscreen 2 Font 24/Smallcaps Map View 50x44 Zoom Use 0% Tactical HUD 1 Map Filters NONE Filters NONE Steam 1 RUN: 4d547610-3140-4bbe-9c3c-60c999edb963